fUSD/lending_fUSD_20260506
["ID","MTS","AMOUNT","RATE_DAILY","PERIOD"]
[421658078,1778033734000,507.63,0.00025827,120]
[421658080,1778033751000,303.47,0.00028767,120]
[421658082,1778033752000,303.47,0.00030082,120]
[421658081,1778033752000,303.47,0.00029425,120]
[421658083,1778033786000,729.007332,0.00024164,120]
[421658084,1778033879000,1006.724411,0.0002352,120]
[421658085,1778033970000,324.901487,0.00023127,120]
[421658086,1778034000000,930022.55901004,0.00030135,120]
[421658087,1778034014000,162.450743,0.00022805,120]
[421658088,1778034067000,184.97,0.00027511,120]
[421658089,1778034087000,152.0,7.547e-05,2]
[421658090,1778034161000,201.12,0.00022,30]
[421658093,1778034190000,362.09269893,0.00026182,120]
[421658092,1778034190000,3095.76,0.0002,30]
[421658095,1778034250000,-378.65170133,9.047e-05,2]
[421658097,1778034250000,-162.22501142,9.547e-05,2]
[421658096,1778034250000,-250.0,9.402e-05,2]
[421658094,1778034250000,-152.0,8.547e-05,2]
[421658098,1778034267000,172.39,0.00022,30]
[421658101,1778034275000,344.25,7.775e-05,2]
[421658100,1778034275000,344.25,7.405e-05,2]
[421658099,1778034275000,344.25,7.035e-05,2]
[421658102,1778034276000,344.25,8.145e-05,2]
[421658103,1778034287000,164.07,0.0002,30]
[421658105,1778034288000,164.07,0.00024,60]
[421658104,1778034288000,164.07,0.00022,30]
[421658106,1778034295000,-344.25,8.516e-05,2]
[421658108,1778034295000,-344.25,9.256e-05,2]
[421658107,1778034295000,-344.25,8.886e-05,2]
[421658109,1778034295000,-344.25,9.626e-05,2]
[421658110,1778034296000,-344.25,9.997e-05,2]
[421658111,1778034400000,153.0,7.547e-05,2]
[421658112,1778034419000,152.0,0.00011255,7]
[421658114,1778034426000,-153.0,9.547e-05,2]
[421658113,1778034426000,-153.0,8.547e-05,2]
[421658115,1778034433000,1512.23707487,0.00022,30]
[421658117,1778034445000,306.48879479,0.00029999,120]
[421658116,1778034445000,500.0,0.00028899,120]
[421658118,1778034485000,3658.34214364,8e-05,2]
[421658126,1778034556000,-153.0,0.00010547,2]
[421658125,1778034556000,-344.25,0.00010367,2]
[421658127,1778034556000,-344.25,0.00010737,2]
[421658128,1778034556000,-344.25,0.00011107,2]
[421658130,1778034556000,-159.00190912,0.00011547,2]
[421658129,1778034556000,-344.25,0.00011478,2]
[421658133,1778034556000,-128.3518219,0.00012118,2]
[421658131,1778034556000,-212.14,0.000116,2]
[421658132,1778034556000,-344.25,0.00011848,2]
[421658134,1778034556000,-79.18346959,0.00012118,2]
[421658135,1778034564000,205.0,9.8e-05,2]
[421658136,1778034613000,1837.33786219,0.00012,2]
[421658162,1778034631000,-300.0,0.00013311,2]
[421658164,1778034631000,-29091.97,0.00013312,2]
[421658160,1778034631000,-1200.0,0.00013311,2]
[421658161,1778034631000,-300.0,0.00013311,2]
[421658173,1778034631000,-2031.47479377,0.000134,2]
[421658168,1778034631000,-352.54,0.00013312,2]
[421658165,1778034631000,-1214.25,0.00013312,2]
[421658170,1778034631000,-301.66,0.00013328,2]
[421658167,1778034631000,-4999.99,0.00013312,2]
[421658163,1778034631000,-150.0,0.00013311,2]
[421658155,1778034631000,-243.46669548,0.00013,2]
[421658157,1778034631000,-209.05105815,0.00013055,2]
[421658158,1778034631000,-1000.0,0.00013066,2]
[421658175,1778034631000,-541.91762306,0.00013698,2]
[421658166,1778034631000,-2644.97,0.00013312,2]
[421658156,1778034631000,-154.09,0.00013043,2]
[421658154,1778034631000,-164.84,0.0001298,2]
[421658153,1778034631000,-344.25,0.00012959,2]
[421658152,1778034631000,-344.25,0.00012588,2]
[421658151,1778034631000,-344.25,0.00012218,2]
[421658150,1778034631000,-1074860.34805295,0.00012,2]
[421658159,1778034631000,-428.62,0.0001309,2]
[421658171,1778034631000,-344.25,0.00013329,2]
[421658181,1778034631000,-5492.9257,0.00014149,2]
[421658172,1778034631000,-872.57,0.00013339,2]
[421658196,1778034631000,-255.0,0.00014416,2]
[421658193,1778034631000,-168.0,0.00014249,2]
[421658192,1778034631000,-150.99,0.00014249,2]
[421658191,1778034631000,-9999.99,0.00014249,2]
[421658194,1778034631000,-168.0,0.00014249,2]
[421658190,1778034631000,-220.03,0.00014249,2]
[421658188,1778034631000,-9999.99,0.00014249,2]
[421658174,1778034631000,-500.0,0.00013698,2]
[421658185,1778034631000,-361.66,0.00014249,2]
[421658187,1778034631000,-9999.99,0.00014249,2]
[421658184,1778034631000,-24999.99,0.00014249,2]
[421658186,1778034631000,-9999.99,0.00014249,2]
[421658182,1778034631000,-150.0,0.00014214,2]
[421658189,1778034631000,-999.99,0.00014249,2]
[421658183,1778034631000,-302.67149318,0.00014239,2]
[421658179,1778034631000,-8947.61057585,0.00014,2]
[421658180,1778034631000,-344.25,0.00014069,2]
[421658178,1778034631000,-250.0,0.00014,2]
[421658177,1778034631000,-344.25,0.00013699,2]
[421658176,1778034631000,-155.13,0.00013699,2]
[421658169,1778034631000,-2000.0,0.00013313,2]
[421658195,1778034631000,-169.99787233,0.00014249,2]
[421658199,1778034632000,-516.0,0.00014734,2]
[421658201,1778034632000,-516.0,0.00014747,2]
[421658197,1778034632000,-1680.0,0.00014642,2]
[421658202,1778034632000,-636.0,0.00014754,2]
[421658200,1778034632000,-516.0,0.00014734,2]
[421658198,1778034632000,-215.63,0.00014662,2]
[421658207,1778034632000,-342180.3563985,0.000148,2]
[421658203,1778034632000,-516.0,0.00014788,2]
[421658206,1778034632000,-8033.39607436,0.000148,2]
[421658205,1778034632000,-1203.62014392,0.000148,2]
[421658208,1778034632000,-153904.48544697,0.000148,2]
[421658209,1778034632000,-82626.20270772,0.000148,2]
[421658210,1778034632000,-658.79792824,0.000148,2]
[421658204,1778034632000,-516.0,0.00014797,2]
[421658211,1778034635000,2445.950878,0.0001194,2]
[421658224,1778034637000,-474.16047687,0.000148,2]
[421658227,1778034637000,-508.57257251,0.000148,2]
[421658226,1778034637000,-1906.31029911,0.000148,2]
[421658228,1778034637000,-736.12857669,0.000148,2]
[421658230,1778034637000,-380.52932165,0.000148,2]
[421658231,1778034637000,-20205.38941356,0.000148,2]
[421658232,1778034637000,-242533.42199483,0.000148,2]
[421658229,1778034637000,-26275.76890073,0.000148,2]
[421658234,1778034637000,-131802.39487791,0.000148,2]
[421658235,1778034637000,-516.0,0.00014814,2]
[421658238,1778034637000,-516.0,0.0001494,2]
[421658236,1778034637000,-3102.0,0.00014882,2]
[421658239,1778034637000,-5053.4295907,0.00014957,2]
[421658233,1778034637000,-376303.81509281,0.000148,2]
[421658240,1778034637000,-516.0,0.00014962,2]
[421658241,1778034637000,-7542.19124396,0.00014963,2]
[421658237,1778034637000,-5737.5994,0.000149,2]
[421658280,1778034638000,-500.0,0.00015057,2]
[421658279,1778034638000,-500.0,0.00015057,2]
[421658282,1778034638000,-500.0,0.00015057,2]
[421658277,1778034638000,-500.0,0.00015057,2]
[421658275,1778034638000,-500.0,0.00015057,2]
[421658276,1778034638000,-500.0,0.00015057,2]
[421658274,1778034638000,-500.0,0.00015057,2]
[421658271,1778034638000,-500.0,0.00015057,2]
[421658273,1778034638000,-500.0,0.00015057,2]
[421658281,1778034638000,-500.0,0.00015057,2]
[421658278,1778034638000,-163.52563831,0.00015057,2]
[421658283,1778034638000,-500.0,0.00015057,2]
[421658289,1778034638000,-500.0,0.00015057,2]
[421658285,1778034638000,-500.0,0.00015057,2]
[421658286,1778034638000,-500.0,0.00015057,2]
[421658288,1778034638000,-500.0,0.00015057,2]
[421658287,1778034638000,-500.0,0.00015057,2]
[421658290,1778034638000,-500.0,0.00015057,2]
[421658292,1778034638000,-500.0,0.00015057,2]
[421658291,1778034638000,-500.0,0.00015057,2]
[421658294,1778034638000,-500.0,0.00015057,2]
[421658297,1778034638000,-500.0,0.00015057,2]
[421658295,1778034638000,-500.0,0.00015057,2]
[421658269,1778034638000,-500.0,0.00015057,2]
[421658293,1778034638000,-500.0,0.00015057,2]
[421658296,1778034638000,-500.0,0.00015057,2]
[421658284,1778034638000,-500.0,0.00015057,2]
[421658270,1778034638000,-500.0,0.00015057,2]
[421658260,1778034638000,-500.0,0.00015057,2]
[421658268,1778034638000,-500.0,0.00015057,2]
[421658299,1778034638000,-500.0,0.00015057,2]
[421658242,1778034638000,-500.0833123,0.00014973,2]
[421658244,1778034638000,-500.0,0.00014973,2]
[421658245,1778034638000,-2000.0,0.00014977,2]
[421658247,1778034638000,-524.88358834,0.00014999,2]
[421658248,1778034638000,-500.0,0.00014999,2]
[421658249,1778034638000,-500.0,0.00014999,2]
[421658243,1778034638000,-164.88829841,0.00014973,2]
[421658246,1778034638000,-51733.43846342,0.00014989,2]
[421658250,1778034638000,-500.0,0.00014999,2]
[421658252,1778034638000,-250.0,0.00014999,2]
[421658251,1778034638000,-500.0,0.00014999,2]
[421658272,1778034638000,-500.0,0.00015057,2]
[421658253,1778034638000,-500.21514319,0.00014999,2]
[421658254,1778034638000,-138699.10301771,0.00015,2]
[421658258,1778034638000,-1827.45432059,0.00015,2]
[421658256,1778034638000,-5541.52076385,0.00015,2]
[421658259,1778034638000,-3772.22319857,0.00015027,2]
[421658257,1778034638000,-150.0,0.00015,2]
[421658261,1778034638000,-500.0,0.00015057,2]
[421658262,1778034638000,-500.0,0.00015057,2]
[421658264,1778034638000,-500.0,0.00015057,2]
[421658263,1778034638000,-500.0,0.00015057,2]
[421658266,1778034638000,-500.0,0.00015057,2]
[421658265,1778034638000,-193.1025,0.00015057,2]
[421658267,1778034638000,-500.0,0.00015057,2]
[421658255,1778034638000,-150.0,0.00015,2]
[421658309,1778034638000,-3102.0,0.00015063,2]
[421658352,1778034638000,-1500.0,0.00016068,2]
[421658298,1778034638000,-500.0,0.00015057,2]
[421658333,1778034638000,-200.0,0.00015565,2]
[421658331,1778034638000,-1000.0,0.00015521,2]
[421658336,1778034638000,-1000.0,0.00015621,2]
[421658337,1778034638000,-501.33595936,0.00015621,2]
[421658335,1778034638000,-433.0,0.00015614,2]
[421658341,1778034638000,-1000.0,0.00015621,2]
[421658338,1778034638000,-1000.0,0.00015621,2]
[421658339,1778034638000,-542.12948735,0.00015621,2]
[421658346,1778034638000,-1317.096,0.00015739,2]
[421658340,1778034638000,-1000.0,0.00015621,2]
[421658344,1778034638000,-150.0,0.00015739,2]
[421658345,1778034638000,-1268.0,0.00015739,2]
[421658327,1778034638000,-500.0,0.00015073,2]
[421658342,1778034638000,-1001.27995319,0.00015621,2]
[421658348,1778034638000,-3536.0,0.00015739,2]
[421658349,1778034638000,-377.29903517,0.0001596,2]
[421658351,1778034638000,-349.19358166,0.00016,2]
[421658353,1778034638000,-349.19358166,0.000161,2]
[421658355,1778034638000,-1500.0,0.00016168,2]
[421658359,1778034638000,-718.9,0.00016338,2]
[421658350,1778034638000,-300.0,0.00016,2]
[421658354,1778034638000,-2351.0,0.00016106,2]
[421658357,1778034638000,-1009.45410883,0.00016168,2]
[421658356,1778034638000,-1511.35710305,0.00016168,2]
[421658358,1778034638000,-349.19358166,0.000162,2]
[421658308,1778034638000,-84556.77,0.00015059,2]
[421658347,1778034638000,-6043.0,0.00015739,2]
[421658330,1778034638000,-2000.0,0.00015516,2]
[421658343,1778034638000,-500.0,0.00015621,2]
[421658332,1778034638000,-167.69,0.00015537,2]
[421658329,1778034638000,-500.0,0.00015132,2]
[421658305,1778034638000,-500.0,0.00015057,2]
[421658303,1778034638000,-500.0,0.00015057,2]
[421658302,1778034638000,-500.0,0.00015057,2]
[421658301,1778034638000,-416.35256383,0.00015057,2]
[421658304,1778034638000,-500.0,0.00015057,2]
[421658307,1778034638000,-1063.40729113,0.00015058,5]
[421658310,1778034638000,-500.0,0.00015072,2]
[421658306,1778034638000,-500.0,0.00015057,2]
[421658311,1778034638000,-155.24601091,0.00015072,2]
[421658314,1778034638000,-183.684982,0.00015072,2]
[421658313,1778034638000,-500.0,0.00015072,2]
[421658312,1778034638000,-458.67220764,0.00015072,2]
[421658318,1778034638000,-501.03818843,0.00015073,2]
[421658300,1778034638000,-500.0,0.00015057,2]
[421658328,1778034638000,-500.0,0.00015073,2]
[421658316,1778034638000,-168.19810832,0.00015073,2]
[421658334,1778034638000,-3954.5,0.00015565,2]
[421658325,1778034638000,-500.0,0.00015073,2]
[421658323,1778034638000,-500.0,0.00015073,2]
[421658324,1778034638000,-500.0,0.00015073,2]
[421658326,1778034638000,-500.0,0.00015073,2]
[421658320,1778034638000,-500.0,0.00015073,2]
[421658321,1778034638000,-170.11428287,0.00015073,2]
[421658319,1778034638000,-205.52907895,0.00015073,2]
[421658315,1778034638000,-500.0,0.00015073,2]
[421658317,1778034638000,-500.0,0.00015073,2]
[421658322,1778034638000,-234.83218623,0.00015073,2]
[421658405,1778034639000,-500.0,0.00017733,2]
[421658396,1778034639000,-151.0,0.00017733,2]
[421658400,1778034639000,-151.0,0.00017733,2]
[421658398,1778034639000,-151.0,0.00017733,2]
[421658407,1778034639000,-500.0,0.00017733,2]
[421658386,1778034639000,-461.0,0.00017717,2]
[421658395,1778034639000,-500.0,0.00017733,2]
[421658390,1778034639000,-1428.38747117,0.00017733,2]
[421658391,1778034639000,-151.0,0.00017733,2]
[421658392,1778034639000,-500.0,0.00017733,2]
[421658401,1778034639000,-500.0,0.00017733,2]
[421658406,1778034639000,-151.0,0.00017733,2]
[421658397,1778034639000,-500.0,0.00017733,2]
[421658410,1778034639000,-151.0,0.00017733,2]
[421658404,1778034639000,-151.0,0.00017733,2]
[421658403,1778034639000,-500.0,0.00017733,2]
[421658399,1778034639000,-500.0,0.00017733,2]
[421658408,1778034639000,-151.0,0.00017733,2]
[421658411,1778034639000,-500.0,0.00017733,2]
[421658418,1778034639000,-151.0,0.00017733,2]
[421658417,1778034639000,-743.50770149,0.00017733,2]
[421658409,1778034639000,-500.0,0.00017733,2]
[421658412,1778034639000,-151.0,0.00017733,2]
[421658419,1778034639000,-151.0,0.00017733,2]
[421658415,1778034639000,-151.0,0.00017733,2]
[421658413,1778034639000,-500.0,0.00017733,2]
[421658402,1778034639000,-151.0,0.00017733,2]
[421658388,1778034639000,-200.0,0.00017733,2]
[421658363,1778034639000,-184.97,0.00016415,2]
[421658385,1778034639000,-7542.19124387,0.00017539,2]
[421658360,1778034639000,-1937.89,0.00016374,2]
[421658414,1778034639000,-500.0,0.00017733,2]
[421658369,1778034639000,-3094.53,0.00016502,2]
[421658368,1778034639000,-500.0,0.00016438,2]
[421658362,1778034639000,-211.56,0.00016406,2]
[421658367,1778034639000,-500.0,0.00016438,2]
[421658366,1778034639000,-500.0,0.00016438,2]
[421658361,1778034639000,-150.0,0.00016383,2]
[421658365,1778034639000,-2191.8,0.00016438,2]
[421658364,1778034639000,-150.0,0.00016416,2]
[421658371,1778034639000,-644.4672729,0.00016616,2]
[421658380,1778034639000,-1000.0,0.00016986,2]
[421658381,1778034639000,-3094.53,0.00017327,2]
[421658387,1778034639000,-578.20924308,0.00017733,2]
[421658378,1778034639000,-931.73147682,0.00016986,2]
[421658374,1778034639000,-772.99778324,0.00016716,2]
[421658379,1778034639000,-1000.0,0.00016986,2]
[421658377,1778034639000,-3094.53,0.00016915,2]
[421658375,1778034639000,-166.56,0.00016785,2]
[421658376,1778034639000,-736.0,0.00016905,2]
[421658373,1778034639000,-199.38,0.00016712,2]
[421658372,1778034639000,-2000.0,0.00016641,2]
[421658383,1778034639000,-1500.0,0.00017534,2]
[421658393,1778034639000,-151.0,0.00017733,2]
[421658382,1778034639000,-166.56,0.00017339,2]
[421658394,1778034639000,-9552.16786547,0.00017733,2]
[421658384,1778034639000,-1500.0,0.00017534,2]
[421658389,1778034639000,-721.12765535,0.00017733,2]
[421658370,1778034639000,-438.56,0.00016517,2]
[421658416,1778034639000,-201.93286099,0.00017733,2]
[421658420,1778034639000,-151.0,0.00017733,2]
[421658422,1778034639000,-151.0,0.00017733,2]
[421658458,1778034639000,-2080.17592889,0.00017733,2]
[421658453,1778034639000,-500.0,0.00017733,2]
[421658459,1778034639000,-3094.53,0.0001774,2]
[421658457,1778034639000,-151.0,0.00017733,2]
[421658470,1778034639000,-10652.17309792,0.00017898,2]
[421658471,1778034639000,-151.0,0.00017898,2]
[421658472,1778034639000,-150.0,0.00017901,2]
[421658478,1778034639000,-150.0,0.00017901,2]
[421658477,1778034639000,-150.0,0.00017901,2]
[421658473,1778034639000,-298.70687485,0.00017901,2]
[421658474,1778034639000,-150.0,0.00017901,2]
[421658476,1778034639000,-150.0,0.00017901,2]
[421658475,1778034639000,-150.0,0.00017901,2]
[421658464,1778034639000,-151.0,0.00017843,2]
[421658484,1778034639000,-151.0,0.00017953,2]
[421658481,1778034639000,-150.0,0.00017901,2]
[421658483,1778034639000,-11046.30350255,0.00017953,2]
[421658493,1778034639000,-150.0,0.00018023,2]
[421658488,1778034639000,-11455.01673214,0.00018008,2]
[421658480,1778034639000,-150.0,0.00017901,2]
[421658490,1778034639000,-151.0,0.00018008,2]
[421658495,1778034639000,-150.0,0.0001806,2]
[421658485,1778034639000,-150.0,0.00017981,2]
[421658482,1778034639000,-150.0,0.00017942,2]
[421658492,1778034639000,-150.0,0.00018018,2]
[421658486,1778034639000,-150.0,0.00017983,2]
[421658497,1778034639000,-3145.29432414,0.00018063,2]
[421658432,1778034639000,-500.0,0.00017733,2]
[421658487,1778034639000,-350.0,0.00018,2]
[421658461,1778034639000,-151.0,0.00017788,2]
[421658479,1778034639000,-150.0,0.00017901,2]
[421658455,1778034639000,-151.0,0.00017733,2]
[421658456,1778034639000,-151.0,0.00017733,2]
[421658430,1778034639000,-500.0,0.00017733,2]
[421658423,1778034639000,-151.0,0.00017733,2]
[421658424,1778034639000,-174.61919141,0.00017733,2]
[421658427,1778034639000,-500.0,0.00017733,2]
[421658431,1778034639000,-151.0,0.00017733,2]
[421658428,1778034639000,-151.0,0.00017733,2]
[421658429,1778034639000,-500.0,0.00017733,2]
[421658426,1778034639000,-151.0,0.00017733,2]
[421658425,1778034639000,-151.0,0.00017733,2]
[421658433,1778034639000,-151.0,0.00017733,2]
[421658435,1778034639000,-151.0,0.00017733,2]
[421658434,1778034639000,-500.0,0.00017733,2]
[421658443,1778034639000,-151.0,0.00017733,2]
[421658421,1778034639000,-151.0,0.00017733,2]
[421658468,1778034639000,-166.56,0.00017893,2]
[421658446,1778034639000,-151.0,0.00017733,2]
[421658460,1778034639000,-9905.5980765,0.00017788,2]
[421658466,1778034639000,-156.76034089,0.00017845,2]
[421658463,1778034639000,-10272.10520533,0.00017843,2]
[421658448,1778034639000,-500.0,0.00017733,2]
[421658450,1778034639000,-151.0,0.00017733,2]
[421658442,1778034639000,-151.0,0.00017733,2]
[421658444,1778034639000,-500.0,0.00017733,2]
[421658440,1778034639000,-151.0,0.00017733,2]
[421658441,1778034639000,-500.0,0.00017733,2]
[421658436,1778034639000,-151.0,0.00017733,2]
[421658438,1778034639000,-500.0,0.00017733,2]
[421658439,1778034639000,-500.0,0.00017733,2]
[421658577,1778034640000,-150.0,0.00018379,2]
[421658589,1778034640000,-150.0,0.00018458,2]
[421658581,1778034640000,-2191.8,0.0001841,2]
[421658587,1778034640000,-166.56,0.00018447,2]
[421658579,1778034640000,-150.0,0.00018388,2]
[421658575,1778034640000,-150.0,0.00018369,2]
[421658553,1778034640000,-673.79384162,0.00018281,2]
[421658571,1778034640000,-2000.0,0.00018321,2]
[421658569,1778034640000,-1252.0,0.00018316,2]
[421658557,1778034640000,-2157.14243826,0.00018281,2]
[421658565,1778034640000,-2000.0,0.00018305,2]
[421658597,1778034640000,-150.0,0.00018498,2]
[421658567,1778034640000,-150.0,0.00018307,2]
[421658573,1778034640000,-150.0,0.00018348,2]
[421658583,1778034640000,-150.0,0.00018429,2]
[421658602,1778034640000,-150.0,0.00018551,2]
[421658595,1778034640000,-150.0,0.00018486,2]
[421658585,1778034640000,-150.0,0.00018444,2]
[421658591,1778034640000,-150.0,0.0001847,2]
[421658599,1778034640000,-150.0,0.0001851,2]
[421658601,1778034640000,-150.0,0.00018538,2]
[421658618,1778034640000,-315.69632176,0.00018638,2]
[421658605,1778034640000,-150.0,0.00018564,2]
[421658614,1778034640000,-150.0,0.00018625,2]
[421658616,1778034640000,-150.0,0.00018632,2]
[421658624,1778034640000,-150.0,0.00018673,2]
[421658610,1778034640000,-150.0,0.00018603,2]
[421658612,1778034640000,-150.0,0.00018617,2]
[421658608,1778034640000,-150.0,0.00018591,2]
[421658593,1778034640000,-284.0,0.00018486,2]
[421658563,1778034640000,-150.0,0.00018299,2]
[421658507,1778034640000,-509.95591116,0.00018082,2]
[421658559,1778034640000,-151.0,0.00018283,2]
[421658620,1778034640000,-1000.0,0.00018665,2]
[421658509,1778034640000,-150.0,0.000181,2]
[421658499,1778034640000,-151.0,0.00018063,2]
[421658501,1778034640000,-150.0,0.00018064,2]
[421658511,1778034640000,-150.0,0.00018104,2]
[421658513,1778034640000,-492.59344334,0.00018117,2]
[421658503,1778034640000,-150.0,0.00018082,2]
[421658505,1778034640000,-961.74205325,0.00018082,2]
[421658515,1778034640000,-500.0,0.00018117,2]
[421658519,1778034640000,-151.0,0.00018118,2]
[421658520,1778034640000,-259.24,0.00018124,2]
[421658522,1778034640000,-259.24,0.00018128,2]
[421658517,1778034640000,-500.0,0.00018117,2]
[421658524,1778034640000,-150.0,0.00018135,2]
[421658534,1778034640000,-150.0,0.00018186,2]
[421658536,1778034640000,-150.0,0.0001822,2]
[421658539,1778034640000,-151.0,0.00018228,2]
[421658538,1778034640000,-150.0,0.00018226,2]
[421658542,1778034640000,-150.0,0.00018233,2]
[421658543,1778034640000,-150.0,0.00018252,2]
[421658526,1778034640000,-150.0,0.0001814,2]
[421658530,1778034640000,-3094.53,0.00018152,2]
[421658547,1778034640000,-150.0,0.00018267,2]
[421658546,1778034640000,-150.0,0.00018263,2]
[421658532,1778034640000,-151.0,0.00018173,2]
[421658528,1778034640000,-150.0,0.00018145,2]
[421658551,1778034640000,-751.61253446,0.00018281,2]
[421658549,1778034640000,-200.0,0.00018281,2]
[421658561,1778034640000,-150.0,0.00018299,2]
[421658555,1778034640000,-181.08010149,0.00018281,2]
[421658626,1778034640000,-872.57,0.00018675,2]
[421658606,1778034640000,-150.0,0.00018564,2]
[421658628,1778034640000,-150.0,0.00018697,2]
[421658693,1778034640000,-150.0,0.00018997,2]
[421658697,1778034640000,-150.0,0.00019015,2]
[421658700,1778034640000,-522.19,0.00019035,2]
[421658702,1778034640000,-150.0,0.00019038,2]
[421658695,1778034640000,-166.56,0.00019001,2]
[421658704,1778034640000,-150.0,0.00019071,2]
[421658706,1778034640000,-150.0,0.00019079,2]
[421658708,1778034640000,-150.0,0.00019095,2]
[421658710,1778034640000,-150.0,0.00019095,2]
[421658712,1778034640000,-152.15955082,0.00019102,2]
[421658715,1778034640000,-150.0,0.00019119,2]
[421658723,1778034640000,-150.0,0.00019174,2]
[421658719,1778034640000,-150.0,0.00019167,2]
[421658725,1778034640000,-500.0,0.00019178,2]
[421658691,1778034640000,-150.0,0.00018986,2]
[421658717,1778034640000,-150.0,0.0001916,2]
[421658729,1778034640000,-150.0,0.000192,4]
[421658727,1778034640000,-150.0,0.00019188,4]
[421658731,1778034640000,-501.54617284,0.00019213,2]
[421658733,1778034640000,-877.91782746,0.00019213,2]
[421658753,1778034640000,-150.0,0.00019322,4]
[421658755,1778034640000,-150.0,0.00019333,4]
[421658749,1778034640000,-150.0,0.00019294,4]
[421658735,1778034640000,-150.0,0.00019227,4]
[421658748,1778034640000,-247.959,0.0001929,2]
[421658741,1778034640000,-150.0,0.00019254,4]
[421658751,1778034640000,-150.0,0.00019305,4]
[421658737,1778034640000,-150.0,0.00019227,4]
[421658743,1778034640000,-366.38,0.00019265,2]
[421658622,1778034640000,-1000.0,0.00018665,2]
[421658721,1778034640000,-229.95,0.00019168,2]
[421658687,1778034640000,-150.0,0.00018957,2]
[421658745,1778034640000,-150.0,0.00019282,4]
[421658689,1778034640000,-783.75,0.0001898,2]
[421658685,1778034640000,-150.0,0.00018954,2]
[421658630,1778034640000,-150.0,0.00018697,2]
[421658739,1778034640000,-150.0,0.00019241,4]
[421658641,1778034640000,-1170.0,0.00018739,2]
[421658645,1778034640000,-3536.0,0.00018739,2]
[421658647,1778034640000,-150.0,0.00018754,2]
[421658635,1778034640000,-1093.85407048,0.00018738,5]
[421658637,1778034640000,-5053.42959064,0.00018739,2]
[421658633,1778034640000,-150.0,0.0001872,2]
[421658631,1778034640000,-150.0,0.00018713,2]
[421658639,1778034640000,-1268.0,0.00018739,2]
[421658649,1778034640000,-150.0,0.00018777,2]
[421658653,1778034640000,-150.0,0.00018805,2]
[421658651,1778034640000,-150.0,0.00018794,2]
[421658655,1778034640000,-200.0,0.00018829,2]
[421658643,1778034640000,-6043.0,0.00018739,2]
[421658668,1778034640000,-150.0,0.00018896,2]
[421658666,1778034640000,-150.0,0.00018876,2]
[421658682,1778034640000,-150.0,0.00018936,2]
[421658680,1778034640000,-150.0,0.00018916,2]
[421658678,1778034640000,-200.0,0.00018915,2]
[421658656,1778034640000,-187.78006525,0.00018829,2]
[421658664,1778034640000,-150.0,0.00018856,2]
[421658683,1778034640000,-9909.74782397,0.00018952,2]
[421658674,1778034640000,-150.0,0.00018896,2]
[421658660,1778034640000,-150.0,0.00018835,2]
[421658670,1778034640000,-150.0,0.00018896,2]
[421658658,1778034640000,-2236.95670848,0.00018829,2]
[421658662,1778034640000,-150.0,0.00018837,2]